bitfinex/quotes_BTCUSD_20250423
["timestamp","ask_amount","ask_price","bid_price","bid_amount"]
[1745381270172,0.001,93098.0,93095.0,0.01074171]
[1745381270488,0.02824494,93100.0,93096.0,0.0107416]
[1745381270870,0.02824494,93100.0,93095.0,0.01074171]
[1745381271071,0.02624494,93100.0,93095.0,0.01074171]
[1745381271273,0.002,93098.0,93095.0,0.01074171]
[1745381272812,0.02624494,93100.0,93095.0,0.01074171]
[1745381273013,0.02824494,93100.0,93095.0,0.01074171]
[1745381273352,0.02624494,93100.0,93095.0,0.01074171]
[1745381273554,0.02624494,93100.0,93094.0,0.35074183]
[1745381273796,0.02624494,93100.0,93095.0,0.01074171]
[1745381274028,0.02624494,93100.0,93094.0,0.35074183]
[1745381274209,0.002,93098.0,93095.0,0.01074171]
[1745381274413,0.002,93098.0,93094.0,0.01074183]
[1745381275847,0.02624494,93100.0,93094.0,0.01074183]
[1745381276051,0.02124494,93100.0,93095.0,0.01074171]
[1745381276412,0.01924494,93100.0,93095.0,0.01074171]
[1745381276864,0.001,93098.0,93095.0,0.01074171]
[1745381277265,0.01924494,93100.0,93095.0,0.01074171]
[1745381277757,0.02124494,93100.0,93095.0,0.01074171]
[1745381278331,0.02124494,93100.0,93094.0,0.35074183]
[1745381278538,0.02124494,93100.0,93095.0,0.01074171]
[1745381279432,0.01924494,93100.0,93095.0,0.01074171]
[1745381279617,0.001,93100.0,93097.0,0.01074148]
[1745381279745,0.001,93100.0,93096.0,0.0107416]
[1745381279945,0.0493252,93106.0,93097.0,0.01074148]
[1745381280146,0.11467575,93105.0,93097.0,0.34]
[1745381280400,0.002,93100.0,93097.0,0.34]
[1745381281151,0.002,93100.0,93097.0,0.35074148]
[1745381281597,0.003,93100.0,93097.0,0.35074148]
[1745381281774,0.003,93100.0,93097.0,0.34]
[1745381281996,0.00633841,93099.0,93094.0,0.34]
[1745381282397,0.001,93100.0,93094.0,0.35074183]
[1745381282601,0.001,93100.0,93094.0,0.34]
[1745381283013,0.001,93100.0,93093.0,0.01074194]
[1745381283222,0.001,93100.0,93092.0,0.01074206]
[1745381283377,0.00731702,93099.0,93093.0,0.01074194]
[1745381283581,0.00731702,93099.0,93094.0,0.01074183]
[1745381283582,0.001,93099.0,93094.0,0.01074183]
[1745381283827,0.10230305,93105.0,93093.0,0.01074194]
[1745381284037,0.11304361,93105.0,93092.0,0.01074206]
[1745381284237,0.001,93100.0,93093.0,0.01074194]
[1745381285048,0.001,93100.0,93092.0,0.01074206]
[1745381285546,0.01074067,93104.0,93092.0,0.01074206]
[1745381285747,0.001,93099.0,93092.0,0.01074206]
[1745381286161,0.10830305,93103.0,93093.0,0.01074194]
[1745381286315,0.00633417,93102.0,93093.0,0.01074194]
[1745381286520,0.11463722,93102.0,93093.0,0.01074194]
[1745381287328,0.11463722,93102.0,93091.0,0.35074217]
[1745381287504,0.11463722,93102.0,93093.0,0.01074194]
[1745381287936,0.11463722,93102.0,93092.0,0.01074206]
[1745381288867,0.10930305,93102.0,93092.0,0.01074206]
[1745381289275,0.10830305,93102.0,93091.0,0.34]
[1745381289648,0.10830305,93102.0,93091.0,0.35074217]
[1745381291262,0.01074113,93100.0,93091.0,0.34]
[1745381291408,0.19333841,93101.0,93091.0,0.34]
[1745381291772,0.01074113,93100.0,93091.0,0.34]
[1745381292105,0.01074125,93099.0,93090.0,0.13075965]
[1745381293787,0.20408425,93099.0,93090.0,0.13075965]
[1745381294286,0.20408425,93099.0,93090.0,0.13175965]
[1745381295949,0.01074136,93098.0,93090.0,0.13175965]
[1745381297071,0.19334672,93097.0,93090.0,0.13175965]
[1745381297277,0.01074229,93090.0,93081.0,5.054e-05]
[1745381297471,0.01074298,93084.0,93081.0,5.054e-05]
[1745381297628,0.19337788,93082.0,93081.0,5.054e-05]
[1745381298027,0.24137788,93082.0,93081.0,5.054e-05]
[1745381298224,0.048,93082.0,93081.0,5.054e-05]
[1745381299246,0.041,93082.0,93081.0,5.054e-05]
[1745381299566,0.042,93082.0,93081.0,0.00205054]
[1745381299762,0.042,93082.0,93081.0,5.054e-05]
[1745381301548,0.001,93082.0,93081.0,5.054e-05]
[1745381303522,0.19437788,93082.0,93081.0,5.054e-05]
[1745381303925,0.30268093,93082.0,93081.0,5.054e-05]
[1745381304127,0.01074356,93079.0,93070.0,0.13075965]
[1745381304282,0.01074344,93080.0,93070.0,0.1308249]
[1745381305229,0.01074344,93080.0,93070.0,0.1328249]
[1745381305573,0.01074333,93081.0,93070.0,0.1308249]
[1745381305781,0.10830305,93081.0,93071.0,0.01074448]
[1745381305978,0.10830305,93081.0,93070.0,0.1415695]
[1745381306426,0.01074344,93080.0,93070.0,0.1308249]
[1745381307009,0.30168392,93081.0,93070.0,0.1348249]
[1745381307638,0.11904638,93081.0,93070.0,0.1348249]
[1745381307977,0.11904638,93081.0,93070.0,0.1328249]
[1745381308258,0.11904638,93081.0,93070.0,0.1348249]
[1745381309061,0.11904638,93081.0,93070.0,0.1328249]
[1745381309362,0.11904638,93081.0,93070.0,0.1348249]
[1745381310132,0.10830305,93081.0,93071.0,0.01074448]
[1745381310335,0.10830305,93081.0,93070.0,0.1455695]
[1745381310980,0.10830305,93081.0,93070.0,0.1435695]
[1745381311478,0.11904638,93081.0,93071.0,0.002]
[1745381311837,0.11904638,93081.0,93070.0,0.1435695]
[1745381312080,0.11904638,93081.0,93070.0,0.1455695]
[1745381312311,0.11904638,93081.0,93070.0,0.1348249]
[1745381312640,0.10830305,93081.0,93070.0,0.1455695]
[1745381313677,0.10830305,93081.0,93070.0,0.1435695]
[1745381313995,0.10830305,93081.0,93071.0,0.002]
[1745381314512,0.10830305,93081.0,93070.0,0.1435695]
[1745381314802,0.10130305,93081.0,93070.0,0.1455695]
[1745381315301,0.10130305,93081.0,93070.0,0.1435695]
[1745381315624,0.10130305,93081.0,93071.0,0.002]
[1745381315912,0.10130305,93081.0,93070.0,0.13075965]
[1745381316259,0.10130305,93081.0,93070.0,0.13275965]
[1745381316463,0.10130305,93081.0,93070.0,0.13075965]
[1745381316895,0.10130305,93081.0,93071.0,0.002]
[1745381317090,0.10130305,93081.0,93070.0,0.13075965]
[1745381317248,0.11204638,93081.0,93071.0,0.002]
[1745381317453,0.10130305,93081.0,93071.0,0.002]
[1745381317940,0.10130305,93081.0,93070.0,0.14350425]
[1745381318355,0.10130305,93081.0,93070.0,0.14550425]
[1745381318555,0.10130305,93081.0,93070.0,0.14350425]
[1745381318698,0.10130305,93081.0,93070.0,0.14150425]
[1745381318896,0.11204638,93081.0,93071.0,0.002]
[1745381319122,0.10130305,93081.0,93071.0,0.001]
[1745381319946,0.10130305,93081.0,93071.0,0.003]
[1745381320585,0.10130305,93081.0,93071.0,0.01274448]
[1745381321826,0.10130305,93081.0,93071.0,0.01374448]
[1745381322410,0.09430305,93081.0,93071.0,0.01374448]
[1745381322585,0.01074367,93078.0,93071.0,0.003]
[1745381322759,0.19338378,93080.0,93071.0,0.003]
[1745381322760,0.01074356,93079.0,93071.0,0.003]
[1745381323163,0.20413205,93077.0,93071.0,0.003]
[1745381323495,0.15330305,93076.0,93071.0,0.002]
[1745381323896,0.01074413,93074.0,93071.0,0.001]
[1745381324038,0.11904718,93074.0,93071.0,0.003]
[1745381324238,0.11904718,93074.0,93071.0,0.002]
[1745381324450,0.10830305,93074.0,93062.0,0.01074552]
[1745381324657,0.10830305,93074.0,93071.0,0.001]
[1745381325086,0.10830305,93074.0,93063.0,0.0107454]
[1745381325259,0.10830305,93074.0,93060.0,0.13075965]
[1745381325459,0.10830305,93074.0,93060.0,0.15025377]
[1745381325685,0.10830305,93074.0,93064.0,0.01074529]
[1745381326186,0.10830305,93074.0,93063.0,0.0107454]
[1745381326916,0.10830305,93074.0,93064.0,0.003]
[1745381327336,0.01074448,93071.0,93063.0,0.002]
[1745381327542,0.01066927,93071.0,93063.0,0.002]
[1745381327677,0.01066927,93071.0,93060.0,0.16099952]
[1745381327881,0.01074436,93072.0,93061.0,0.01074563]
[1745381328147,0.01074436,93072.0,93060.0,0.16099952]
[1745381328148,0.01074436,93072.0,93064.0,0.002]
[1745381328640,0.01074436,93072.0,93063.0,0.003]
[1745381328842,0.01074506,93066.0,93063.0,0.003]
[1745381329049,0.10830305,93065.0,93063.0,0.003]
[1745381329202,0.01074529,93064.0,93060.0,0.02249412]
[1745381329410,0.11904834,93064.0,93060.0,0.02249412]
[1745381329823,0.11904834,93064.0,93063.0,0.003]
[1745381330023,0.01074506,93066.0,93060.0,8.025e-05]
[1745381330024,0.0107454,93063.0,93060.0,8.025e-05]
[1745381330389,0.01074529,93064.0,93060.0,8.025e-05]
[1745381331019,0.001,93063.0,93060.0,8.025e-05]
[1745381331759,0.01074529,93064.0,93060.0,8.025e-05]
[1745381334409,0.30172456,93061.0,93060.0,8.025e-05]
[1745381334896,0.30372456,93061.0,93060.0,8.025e-05]
[1745381335268,0.30172456,93061.0,93060.0,8.025e-05]
[1745381335446,0.52330305,93061.0,93060.0,8.025e-05]
[1745381335647,0.415,93061.0,93060.0,8.025e-05]
[1745381337808,0.408,93061.0,93060.0,8.025e-05]
[1745381342554,0.70972456,93061.0,93060.0,8.025e-05]
[1745381343434,0.81916541,93061.0,93060.0,8.025e-05]
[1745381345437,0.81216541,93061.0,93060.0,8.025e-05]
[1745381346383,0.81016541,93061.0,93060.0,8.025e-05]
[1745381346542,0.80916541,93061.0,93060.0,8.025e-05]
[1745381346730,0.81016541,93061.0,93060.0,8.025e-05]
[1745381346931,0.81116541,93061.0,93060.0,8.025e-05]
[1745381347136,0.80916541,93061.0,93060.0,8.025e-05]
[1745381347509,0.81116541,93061.0,93060.0,8.025e-05]
[1745381347919,0.80916541,93061.0,93060.0,8.025e-05]
[1745381348412,0.60420305,93061.0,93060.0,8.025e-05]
[1745381348770,0.50930305,93061.0,93060.0,8.025e-05]
[1745381348979,0.51030305,93061.0,93060.0,8.025e-05]
[1745381349381,0.50930305,93061.0,93060.0,8.025e-05]
[1745381349682,0.51030305,93061.0,93060.0,8.025e-05]
[1745381350220,0.402,93061.0,93060.0,8.025e-05]
[1745381353246,0.395,93061.0,93060.0,8.025e-05]
[1745381355033,0.442,93061.0,93060.0,8.025e-05]
[1745381355883,0.69672456,93061.0,93060.0,8.025e-05]
[1745381356060,0.50330305,93061.0,93060.0,8.025e-05]
[1745381358915,0.51404868,93061.0,93050.0,0.13075965]
[1745381359120,0.10830305,93060.0,93050.0,0.14159683]
[1745381360997,0.10130305,93060.0,93050.0,0.14159683]
[1745381361583,0.10130305,93060.0,93050.0,0.14059683]
[1745381361776,0.10130305,93060.0,93050.0,0.14159683]
[1745381361989,0.10130305,93060.0,93050.0,0.13084992]
[1745381362185,0.01074598,93058.0,93050.0,0.13084992]
[1745381362401,0.0107461,93057.0,93050.0,0.13084992]
[1745381362804,0.0107461,93057.0,93050.0,0.00109027]
[1745381363203,0.11904903,93058.0,93050.0,9.027e-05]
[1745381363423,0.10830305,93058.0,93050.0,9.027e-05]
[1745381364484,0.10830305,93058.0,93050.0,0.00109027]
[1745381368657,0.10130305,93058.0,93050.0,0.00109027]
[1745381375799,0.10130305,93058.0,93046.0,0.11084207]
[1745381376032,0.10130305,93058.0,93046.0,0.11093739]
[1745381376304,0.10130305,93058.0,93043.0,0.08893016]
[1745381376516,0.01074587,93059.0,93043.0,0.08905097]
[1745381376717,0.01074598,93058.0,93047.0,0.01074725]
[1745381376939,0.01074598,93058.0,93048.0,0.01074714]
[1745381377268,0.01074598,93058.0,93047.0,0.01074725]
[1745381377473,0.01074598,93058.0,93048.0,0.01074714]
[1745381378004,0.11904892,93059.0,93048.0,0.01074714]
[1745381378636,0.11904892,93059.0,93048.0,0.01174714]
[1745381378933,0.11904892,93059.0,93048.0,0.001]
[1745381379135,0.01074598,93058.0,93047.0,0.01074725]
[1745381379486,0.01074598,93058.0,93048.0,0.001]
[1745381379960,0.01074598,93058.0,93048.0,0.002]
[1745381380514,0.01074621,93056.0,93048.0,0.002]
[1745381380900,0.0107461,93057.0,93048.0,0.001]
[1745381381550,0.01074598,93058.0,93048.0,0.001]
[1745381381940,0.01074598,93058.0,93047.0,0.01174725]
[1745381382277,0.01074598,93058.0,93048.0,0.002]
[1745381382640,0.10830305,93059.0,93048.0,0.01274714]
[1745381382889,0.11904892,93059.0,93048.0,0.01174714]
[1745381383300,0.11904892,93059.0,93048.0,0.001]
[1745381383503,0.01074633,93055.0,93048.0,0.001]
[1745381383699,0.01074621,93056.0,93048.0,0.001]
[1745381384127,0.00374598,93058.0,93048.0,0.001]
[1745381384305,0.31247475,93059.0,93048.0,0.001]
[1745381384457,0.20417636,93057.0,93048.0,0.001]
[1745381384829,0.10830305,93059.0,93048.0,0.01074714]
[1745381385044,0.11904892,93059.0,93049.0,0.01074702]
[1745381385225,0.01074598,93058.0,93048.0,0.01174714]
[1745381385439,0.11904892,93059.0,93048.0,0.01274714]
[1745381385590,0.11904892,93059.0,93048.0,0.002]
[1745381385802,0.10830305,93059.0,93051.0,0.01074679]
[1745381385995,0.10830305,93059.0,93048.0,0.01174714]
[1745381386243,0.10830305,93059.0,93048.0,0.01074714]
[1745381386244,0.01074598,93058.0,93048.0,0.01074714]
[1745381386608,0.01074598,93058.0,93048.0,0.001]
[1745381387616,0.20417394,93058.0,93048.0,0.001]
[1745381387821,0.01074633,93055.0,93046.0,0.02433032]
[1745381388021,0.01074644,93054.0,93042.0,0.16931144]
[1745381388175,0.01074644,93054.0,93042.0,0.16944735]
[1745381388384,0.01074633,93055.0,93048.0,0.001]
[1745381388608,0.01074633,93055.0,93048.0,0.002]
[1745381388781,0.01074633,93055.0,93048.0,0.001]
[1745381388983,0.01074633,93055.0,93042.0,0.00013591]
[1745381389189,0.01074644,93054.0,93046.0,0.001]
[1745381389449,0.01074621,93056.0,93046.0,0.001]
[1745381389575,0.01074633,93055.0,93045.0,0.01074748]
[1745381389775,0.01074633,93055.0,93048.0,0.001]
[1745381389972,0.01074621,93056.0,93048.0,0.002]
[1745381390380,0.01074633,93055.0,93048.0,0.002]
[1745381390796,0.0107461,93057.0,93048.0,0.002]
[1745381390993,0.01074621,93056.0,93046.0,0.01074737]
[1745381391477,0.01074621,93056.0,93046.0,0.01174737]
[1745381391639,0.0107461,93057.0,93046.0,0.01074737]
[1745381391845,0.0107461,93057.0,93047.0,0.01074725]
[1745381392093,0.20417394,93058.0,93047.0,0.01074725]
[1745381392293,0.11904892,93059.0,93048.0,0.01074714]
[1745381393495,0.01074598,93058.0,93048.0,0.01074714]
[1745381394576,0.01074598,93058.0,93048.0,0.01174714]
[1745381394783,0.01074598,93058.0,93048.0,0.01274714]
[1745381395056,0.01074598,93058.0,93048.0,0.01174714]
[1745381395375,0.01074598,93058.0,93048.0,0.01274714]
[1745381395646,0.11904892,93059.0,93048.0,0.01274714]
[1745381395809,0.11904892,93059.0,93049.0,0.01074702]
[1745381396150,0.11904892,93059.0,93048.0,0.01274714]
[1745381396774,0.11904892,93059.0,93049.0,0.01074702]
[1745381397082,0.01074598,93058.0,93048.0,0.01274714]
[1745381397285,0.11904892,93059.0,93048.0,0.01074714]
[1745381397442,0.11904892,93059.0,93048.0,0.01174714]
[1745381398048,0.11904892,93059.0,93048.0,0.01274714]
[1745381398247,0.11904892,93059.0,93048.0,0.01174714]
[1745381398670,0.11904892,93059.0,93048.0,0.01274714]
[1745381398995,0.01074598,93058.0,93048.0,0.01274714]
[1745381399691,0.11904892,93059.0,93048.0,0.01274714]
[1745381399898,0.11204892,93059.0,93048.0,0.01274714]
[1745381400218,0.11204892,93059.0,93048.0,0.01074714]
[1745381400434,0.30547561,93059.0,93048.0,0.001]
[1745381400587,0.0107461,93057.0,93049.0,0.13075965]
[1745381400791,0.01074621,93056.0,93049.0,0.13075965]
[1745381401015,0.0107461,93057.0,93049.0,0.13075965]
[1745381402351,0.01074633,93055.0,93049.0,0.13075965]
[1745381402545,0.01074621,93056.0,93049.0,0.13075965]
[1745381402907,0.0107461,93057.0,93049.0,0.13075965]
[1745381403430,0.01074633,93055.0,93045.0,0.02385793]
[1745381403634,0.01074691,93050.0,93042.0,0.00013591]
[1745381403882,0.20418657,93053.0,93042.0,0.00013591]
[1745381404078,0.10830305,93052.0,93042.0,0.20434422]
[1745381404284,0.10830305,93052.0,93043.0,0.01074771]
[1745381404481,0.10830305,93052.0,93044.0,0.19345685]
[1745381404686,0.10830305,93052.0,93043.0,0.01074771]
[1745381404884,0.10830305,93052.0,93047.0,0.01074725]
[1745381405090,0.10830305,93052.0,93044.0,0.0107476]
[1745381405261,0.10830305,93052.0,93045.0,0.01174748]
[1745381405462,0.10830305,93052.0,93045.0,0.001]
[1745381406164,0.10830305,93052.0,93045.0,0.01174748]
[1745381406743,0.10830305,93052.0,93045.0,0.01074748]
[1745381406922,0.10830305,93052.0,93047.0,0.001]
[1745381407495,0.10130305,93052.0,93047.0,0.001]
[1745381408021,0.10130305,93052.0,93046.0,0.01074737]
[1745381408394,0.10130305,93052.0,93047.0,0.001]
[1745381409168,0.10130305,93052.0,93045.0,0.001]
[1745381409573,0.10130305,93052.0,93043.0,0.03431949]
[1745381409771,0.10130305,93052.0,93047.0,0.001]
[1745381410400,0.10130305,93052.0,93044.0,0.0107476]
[1745381410587,0.10130305,93052.0,93046.0,0.001]
[1745381410969,0.10130305,93052.0,93045.0,0.01074748]
[1745381411089,0.10130305,93052.0,93045.0,0.01174748]
[1745381411290,0.10130305,93052.0,93046.0,0.01074737]
[1745381411719,0.10130305,93052.0,93047.0,0.01074725]
[1745381411921,0.10130305,93052.0,93046.0,0.01074737]
[1745381412779,0.10130305,93052.0,93045.0,0.01174748]
[1745381412998,0.10130305,93052.0,93047.0,0.01074725]
[1745381413184,0.391,93053.0,93047.0,0.01074725]
[1745381413384,0.391,93053.0,93046.0,0.01174737]
[1745381413564,0.391,93053.0,93047.0,0.01074725]
[1745381415191,0.384,93053.0,93047.0,0.01074725]
[1745381417253,0.384,93053.0,93046.0,0.01074737]
[1745381417454,0.01074621,93056.0,93046.0,0.01074737]
[1745381417658,0.01074621,93056.0,93047.0,0.01074725]
[1745381417863,0.01074598,93058.0,93047.0,0.01074725]
[1745381418882,0.01074621,93056.0,93046.0,0.14150702]
[1745381419129,0.01074598,93058.0,93047.0,0.01074725]
[1745381419470,0.0107461,93057.0,93046.0,0.14150702]
[1745381419670,0.0107461,93057.0,93047.0,0.01074725]
[1745381420336,0.09996,93060.0,93057.0,0.0107461]
[1745381420480,0.09996,93060.0,93054.0,0.20418216]
[1745381420681,0.09996,93060.0,93057.0,0.0107461]
[1745381421896,0.10196,93060.0,93057.0,0.0107461]
[1745381422096,0.002,93060.0,93057.0,0.0107461]
[1745381422979,0.379,93062.0,93057.0,0.0107461]
[1745381423157,0.002,93060.0,93057.0,0.0107461]
[1745381423751,0.379,93062.0,93057.0,0.0107461]
[1745381424156,0.381,93062.0,93058.0,0.01074598]
[1745381424739,0.381,93062.0,93055.0,0.01074633]
[1745381425039,0.383,93062.0,93059.0,0.01074587]
[1745381425257,0.381,93062.0,93057.0,0.0107461]
[1745381425440,0.379,93062.0,93056.0,0.01074621]
[1745381425643,0.381,93062.0,93056.0,0.01074621]
[1745381425847,0.384,93062.0,93056.0,0.01074621]
[1745381426304,0.381,93062.0,93056.0,0.01074621]
[1745381426654,0.383,93062.0,93056.0,0.01074621]
[1745381427312,0.381,93062.0,93056.0,0.01074621]
[1745381427610,0.383,93062.0,93056.0,0.01074621]
[1745381427967,0.381,93062.0,93056.0,0.01074621]
[1745381428177,0.382,93062.0,93055.0,0.01074633]
[1745381429176,0.379,93062.0,93053.0,0.01074656]
[1745381429376,0.381,93062.0,93053.0,0.01074656]
[1745381429613,0.381,93062.0,93054.0,0.01074644]
[1745381430141,0.379,93062.0,93054.0,0.01074644]
[1745381430434,0.38,93062.0,93054.0,0.01074644]
[1745381430590,0.373,93062.0,93054.0,0.01074644]
[1745381430789,0.374,93062.0,93054.0,0.01074644]
[1745381431031,0.373,93062.0,93054.0,0.01074644]
[1745381431169,0.373,93062.0,93053.0,0.01074656]
[1745381431633,0.00880074,93061.0,93053.0,0.01074656]
[1745381433499,0.00980074,93061.0,93052.0,0.14150632]
[1745381433740,0.00980074,93061.0,93053.0,0.01074656]
[1745381434681,0.00880074,93061.0,93053.0,0.01074656]
[1745381434886,0.00980074,93061.0,93053.0,0.01074656]
[1745381435104,0.00980074,93061.0,93052.0,0.14150632]
[1745381435304,0.00980074,93061.0,93053.0,0.01074656]
[1745381435500,0.00880074,93061.0,93053.0,0.01074656]
[1745381435706,0.00980074,93061.0,93053.0,0.01074656]
[1745381436079,0.20322303,93061.0,93052.0,0.13075965]
[1745381436258,0.19343399,93055.0,93043.0,0.02411081]
[1745381436466,0.01074737,93046.0,93043.0,0.02411081]
[1745381436669,0.00857593,93045.0,93042.0,0.00013591]
[1745381436926,0.01074691,93050.0,93042.0,0.00013591]
[1745381437148,0.01074679,93051.0,93042.0,0.00013591]
[1745381437290,0.00859095,93049.0,93042.0,0.00013591]
[1745381437475,0.01074679,93051.0,93042.0,0.00013591]
[1745381437674,0.00859471,93050.0,93043.0,0.002]
[1745381437934,0.00859471,93050.0,93042.0,0.01088374]
[1745381438235,0.00859471,93050.0,93042.0,0.03623914]
[1745381438414,0.00159471,93050.0,93043.0,0.01074771]
[1745381438576,0.00742428,93050.0,93043.0,0.01074771]
[1745381438934,0.00742428,93049.0,93044.0,0.0107476]
[1745381439338,0.16434949,93054.0,93044.0,0.0107476]
[1745381439549,0.00742053,93048.0,93044.0,0.0107476]
[1745381439757,0.16434949,93054.0,93044.0,0.0107476]
[1745381439923,0.16434949,93054.0,93044.0,0.14150725]
[1745381440125,0.0074393,93053.0,93044.0,0.14150725]
[1745381440327,0.10830305,93052.0,93044.0,0.0107476]
[1745381440530,0.10830305,93052.0,93043.0,0.01074771]
[1745381440691,0.00743179,93051.0,93044.0,0.0107476]
[1745381441154,0.00743179,93051.0,93044.0,0.001]
[1745381441364,0.00743179,93051.0,93042.0,0.03573758]
[1745381441365,0.00743179,93051.0,93042.0,0.02398975]
[1745381441516,0.01074691,93050.0,93044.0,0.001]
[1745381441739,0.00742428,93049.0,93044.0,0.002]
[1745381441940,0.00742428,93049.0,93044.0,0.001]
[1745381442157,0.11904984,93051.0,93044.0,0.001]
[1745381442323,0.00737074,93048.0,93044.0,0.002]
[1745381442524,0.01074691,93050.0,93044.0,0.002]
[1745381442729,0.00736698,93047.0,93044.0,0.001]
[1745381443038,0.00736323,93046.0,93044.0,0.001]
[1745381443235,0.11904984,93051.0,93044.0,0.001]
[1745381443441,0.00737825,93050.0,93044.0,0.001]
[1745381443642,0.00737825,93050.0,93044.0,0.002]
[1745381443880,0.00737825,93050.0,93044.0,0.003]
[1745381444685,0.00737825,93050.0,93044.0,0.001]
[1745381444890,0.00737825,93050.0,93043.0,0.01074771]
[1745381445088,0.00737825,93050.0,93044.0,0.001]
[1745381445736,0.00737825,93050.0,93043.0,0.01074771]
[1745381445934,0.00737825,93050.0,93042.0,0.03473758]
[1745381446138,0.00737449,93050.0,93043.0,0.01074771]
[1745381446448,0.00737449,93050.0,93042.0,0.03473758]
[1745381446722,0.00737449,93050.0,93044.0,0.0107476]
[1745381446911,0.00737449,93050.0,93042.0,0.02398975]
[1745381447117,0.00737449,93050.0,93043.0,0.01174771]
[1745381447412,0.00737449,93050.0,93043.0,0.01074771]
[1745381447619,0.00737449,93050.0,93042.0,0.02498975]
[1745381447776,0.16605007,93049.0,93043.0,0.001]
[1745381448238,0.01074737,93046.0,93043.0,0.002]
[1745381448415,0.11905042,93046.0,93042.0,0.00013591]
[1745381448676,0.01689723,93045.0,93043.0,0.001]
[1745381449005,0.01689723,93045.0,93042.0,0.00013591]
[1745381449231,0.01689723,93045.0,93042.0,0.00113591]
[1745381449390,0.00614975,93045.0,93042.0,0.00113591]
[1745381450603,0.00614975,93045.0,93042.0,0.00013591]
[1745381450809,0.01689723,93045.0,93042.0,0.00013591]
[1745381451143,0.00714975,93045.0,93042.0,0.00013591]
[1745381451661,0.0481,93044.0,93042.0,0.00013591]
[1745381452035,0.00612564,93043.0,93042.0,0.00013591]
[1745381452648,0.10830305,93046.0,93042.0,0.00013591]
[1745381452849,0.00612564,93043.0,93042.0,0.00013591]
[1745381453227,0.10830305,93046.0,93042.0,0.00013591]
[1745381453430,0.00613315,93045.0,93042.0,0.00013591]
[1745381454170,0.1074362,93046.0,93042.0,0.00013591]
[1745381454332,0.0051072,93044.0,93042.0,0.00013591]
[1745381454534,0.1074362,93046.0,93042.0,0.00013591]
[1745381454771,0.00510344,93043.0,93042.0,0.00013591]
[1745381454928,0.1074362,93046.0,93042.0,0.00013591]
[1745381455133,0.00511095,93045.0,93042.0,0.00013591]
[1745381456446,0.00511095,93045.0,93042.0,0.01088374]
[1745381457963,0.00511095,93045.0,93042.0,0.00013591]
[1745381458487,0.00511095,93045.0,93042.0,0.01088374]
[1745381458689,0.00511095,93045.0,93042.0,0.00013591]
[1745381462041,0.0050997,93044.0,93042.0,0.00013591]
[1745381463050,0.10554715,93046.0,93042.0,0.00013591]
[1745381463249,0.00636618,93043.0,93042.0,0.00013591]
[1745381463395,0.10554715,93046.0,93042.0,0.00013591]
[1745381463595,0.00636618,93043.0,93042.0,0.00013591]
[1745381463824,0.10554715,93046.0,93042.0,0.00013591]
[1745381464378,0.00637744,93045.0,93042.0,0.00013591]
[1745381469608,0.10492459,93046.0,93042.0,0.00013591]
[1745381476540,0.27914185,93043.0,93042.0,0.00013591]
[1745381476650,0.3874449,93043.0,93042.0,0.00013591]
[1745381477292,0.3804449,93043.0,93042.0,0.00013591]
[1745381477555,0.30176198,93043.0,93042.0,0.00013591]
[1745381478058,0.30376198,93043.0,93042.0,0.00013591]
[1745381479709,0.30776198,93043.0,93042.0,0.00013591]
[1745381480592,0.41606503,93043.0,93042.0,0.00013591]
[1745381480721,0.30776198,93043.0,93042.0,0.00013591]
[1745381481859,0.32785476,93043.0,93042.0,0.00013591]
[1745381482099,0.69985476,93043.0,93042.0,0.00013591]
[1745381483718,0.67976198,93043.0,93042.0,0.00013591]
[1745381484022,0.74310283,93043.0,93042.0,0.00013591]
[1745381485178,0.73610283,93043.0,93042.0,0.00013591]
[1745381485556,0.73710283,93043.0,93042.0,0.00013591]
[1745381486201,0.73110283,93043.0,93042.0,0.00013591]
[1745381486408,0.74010283,93043.0,93042.0,0.00013591]
[1745381486560,0.83978283,93043.0,93042.0,0.00013591]
[1745381487030,0.83878283,93043.0,93042.0,0.00013591]
[1745381487199,0.84478283,93043.0,93042.0,0.00013591]
[1745381490902,0.86385842,93043.0,93042.0,0.00013591]
[1745381492796,0.84231757,93043.0,93042.0,0.00013591]
[1745381493035,0.82224198,93043.0,93042.0,0.00013591]
[1745381494969,0.84231759,93043.0,93042.0,0.00013591]
[1745381496133,0.85235577,93043.0,93042.0,0.00013591]
[1745381496575,0.85988411,93043.0,93042.0,0.00013591]
[1745381496951,0.8398085,93043.0,93042.0,0.00013591]
[1745381497360,0.83228016,93043.0,93042.0,0.00013591]
[1745381498033,0.82224198,93043.0,93042.0,0.00013591]
[1745381498643,0.01074979,93025.0,93020.0,0.15969391]
[1745381498843,0.01079658,93025.0,93015.0,0.4823604]
[1745381499102,0.01079658,93025.0,93017.0,0.01075072]
[1745381499249,4.679e-05,93025.0,93015.0,0.4823604]
[1745381499450,4.679e-05,93025.0,93018.0,0.0107506]
[1745381499651,4.679e-05,93025.0,93017.0,0.01075072]
[1745381499867,0.01074991,93024.0,93020.0,0.001]
[1745381500067,0.01079658,93025.0,93020.0,0.001]
[1745381500634,0.01074968,93026.0,93020.0,0.001]
[1745381500955,0.01074968,93026.0,93020.0,0.00114038]
[1745381501638,0.01074968,93026.0,93020.0,0.00014038]
[1745381502000,0.01074968,93026.0,93020.0,0.00114038]
[1745381502545,0.01074968,93026.0,93020.0,0.00014038]
[1745381502762,0.01074956,93027.0,93020.0,0.00214038]
[1745381503754,0.01074956,93027.0,93020.0,0.00114038]
[1745381504702,0.01074956,93027.0,93020.0,0.00014038]
[1745381505088,0.01074956,93027.0,93020.0,0.00214038]
[1745381507224,0.01074968,93026.0,93020.0,0.00214038]
[1745381507396,0.00970156,93027.0,93020.0,0.00214038]
[1745381508295,0.01074945,93028.0,93020.0,0.00114038]
[1745381508503,0.1190525,93028.0,93020.0,0.00114038]
[1745381508718,0.01074968,93026.0,93020.0,0.00214038]
[1745381508922,0.01074956,93027.0,93020.0,0.00214038]
[1745381509120,0.01074956,93027.0,93020.0,0.00114038]
[1745381509323,0.01074956,93027.0,93020.0,0.00014038]
[1745381509645,0.01074956,93027.0,93020.0,0.00214038]
[1745381509851,0.01074956,93027.0,93020.0,0.00114038]
[1745381510201,0.01074956,93027.0,93020.0,0.00214038]
[1745381511327,0.01074956,93027.0,93020.0,0.00114038]
[1745381511646,0.01074956,93027.0,93020.0,0.00214038]
[1745381512665,0.01074991,93024.0,93020.0,0.00214038]
[1745381512867,0.01074979,93025.0,93020.0,0.00214038]
[1745381514365,0.01075002,93023.0,93020.0,0.00214038]
[1745381514570,0.01074991,93024.0,93020.0,0.00114038]
[1745381514712,0.01074991,93024.0,93020.0,0.00214038]
[1745381514920,0.01074991,93024.0,93020.0,0.00114038]
[1745381514921,0.01075002,93023.0,93020.0,0.00114038]